bitfinex-derivatives/quotes_BTCF0:USTF0_20241221
["timestamp","ask_amount","ask_price","bid_price","bid_amount"]
[1734811165108,0.002,97269.0,97268.0,0.051427]
[1734811165906,0.00836883,97271.0,97270.0,0.051426]
[1734811166410,0.12303174,97278.0,97277.0,0.051422]
[1734811166608,0.13141238,97278.0,97277.0,0.051422]
[1734811166910,0.13141226,97278.0,97277.0,0.051422]
[1734811167505,0.13241226,97278.0,97277.0,0.051422]
[1734811168315,0.00938052,97278.0,97277.0,0.051422]
[1734811168526,0.01038052,97278.0,97277.0,0.051422]
[1734811169710,0.02225228,97278.0,97277.0,0.051422]
[1734811170219,0.01038052,97278.0,97277.0,0.051422]
[1734811172034,0.02225228,97278.0,97277.0,0.051422]
[1734811172320,0.02226337,97278.0,97277.0,0.051422]
[1734811172616,0.01039161,97278.0,97277.0,0.051422]
[1734811173208,0.02226337,97278.0,97277.0,0.051422]
[1734811176319,0.01039161,97278.0,97277.0,0.051422]
[1734811178223,0.02050717,97278.0,97277.0,0.061629]
[1734811178523,0.03237893,97278.0,97277.0,0.061629]
[1734811180915,0.03237616,97278.0,97277.0,0.061629]
[1734811182119,0.13966857,97278.0,97277.0,0.061629]
[1734811182319,0.12955301,97278.0,97277.0,0.061629]
[1734811183323,0.23360297,97278.0,97277.0,0.061629]
[1734811183716,0.23360297,97278.0,97277.0,0.051422]
[1734811183919,0.23359611,97278.0,97277.0,0.051422]
[1734811184120,0.051426,97270.0,97268.0,0.18431646]
[1734811184416,0.38105374,97269.0,97268.0,0.18431646]
[1734811184611,0.051427,97268.0,97267.0,0.18431646]
[1734811184812,0.07168074,97268.0,97267.0,0.18431646]
[1734811185011,0.02025374,97268.0,97267.0,0.18431646]
[1734811186122,0.02125374,97268.0,97267.0,0.18431646]
[1734811186417,0.25551804,97268.0,97266.0,0.051428]
[1734811186614,0.00838198,97267.0,97266.0,0.051428]
[1734811186826,0.02025374,97267.0,97266.0,0.051428]
[1734811187617,0.02025374,97267.0,97266.0,0.061883]
[1734811188723,0.02025374,97267.0,97266.0,0.062883]
[1734811190021,0.00838198,97267.0,97266.0,0.062883]
[1734811190222,0.02025374,97267.0,97266.0,0.062883]
[1734811192435,0.01187176,97267.0,97266.0,0.062883]
[1734811192619,0.00839023,97267.0,97266.0,0.062883]
[1734811192839,0.15401183,97268.0,97266.0,0.062883]
[1734811193123,0.00838933,97267.0,97266.0,0.062883]
[1734811195416,0.00839104,97267.0,97266.0,0.062883]
[1734811197426,0.15401183,97272.0,97266.0,0.011455]
[1734811197621,0.00839167,97271.0,97266.0,0.011455]
[1734811197929,0.00839167,97270.0,97266.0,0.011455]
[1734811198132,0.00839167,97269.0,97267.0,0.051428]
[1734811198334,0.13158315,97268.0,97267.0,0.051428]
[1734811198522,0.14187423,97268.0,97267.0,0.051428]
[1734811199625,0.14187423,97268.0,97267.0,0.052428]
[1734811200022,0.01868275,97268.0,97267.0,0.052428]
[1734811200931,0.01870074,97268.0,97267.0,0.052428]
[1734811201434,0.01970075,97268.0,97267.0,0.052428]
[1734811203136,0.01970227,97268.0,97267.0,0.052428]
[1734811203338,0.01970233,97268.0,97267.0,0.052428]
[1734811206227,0.01961782,97268.0,97267.0,0.052428]
[1734811207322,0.001,97268.0,97267.0,0.16863857]
[1734811207527,0.001,97268.0,97267.0,0.20734564]
[1734811209035,0.00843194,97278.0,97267.0,0.20734564]
[1734811209336,0.12319148,97280.0,97279.0,0.051421]
[1734811209637,0.12319148,97280.0,97279.0,0.412221]
[1734811209841,0.12319148,97290.0,97279.0,0.3608]
[1734811210035,0.12319148,97290.0,97289.0,0.412216]
[1734811210431,0.1417262,97290.0,97289.0,0.412216]
[1734811211342,0.01853472,97290.0,97289.0,0.412216]
[1734811211543,0.01853472,97290.0,97289.0,0.413216]
[1734811211732,0.01953506,97290.0,97289.0,0.413216]
[1734811212138,0.01953506,97290.0,97289.0,0.412216]
[1734811214542,0.0195216,97290.0,97289.0,0.412216]
[1734811215135,0.01111311,97290.0,97289.0,0.412216]
[1734811216244,0.001,97290.0,97289.0,0.412216]
[1734811217535,0.001,97290.0,97289.0,0.52181247]
[1734811219941,0.1,97300.0,97289.0,0.52181247]
[1734811220137,0.1,97300.0,97299.0,0.412211]
[1734811221240,0.00842785,97315.0,97299.0,0.47807367]
[1734811221433,0.09223723,97316.0,97314.0,0.412203]
[1734811221630,0.09223723,97316.0,97314.0,0.773003]
[1734811222041,0.09223723,97318.0,97317.0,0.051401]
[1734811223444,0.09223723,97318.0,97314.0,0.7224]
[1734811223445,0.01026429,97324.0,97314.0,0.7224]
[1734811223646,0.0558,97325.0,97323.0,0.051398]
[1734811224938,0.0558,97325.0,97323.0,0.052398]
[1734811225948,0.09223723,97335.0,97334.0,0.051392]
[1734811226142,0.09223723,97337.0,97336.0,0.051391]
[1734811227141,0.12319148,97342.0,97341.0,0.051388]
[1734811227446,0.00841929,97376.0,97351.0,0.051383]
[1734811227641,0.1824372,97378.0,97353.0,0.051382]
[1734811227642,0.09193761,97355.0,97353.0,0.051382]
[1734811228044,0.09193761,97355.0,97354.0,0.11668807]
[1734811229552,0.1706,97378.0,97357.0,0.05138]
[1734811229853,0.1706,97378.0,97368.0,0.15195163]
[1734811230040,0.0549,97378.0,97371.0,0.3608]
[1734811230651,0.3608,97388.0,97371.0,0.3608]
[1734811230955,0.051365,97387.0,97371.0,0.3608]
[1734811231149,0.051366,97384.0,97371.0,0.3608]
[1734811231369,0.3608,97388.0,97371.0,0.3618]
[1734811231370,0.051367,97382.0,97371.0,0.3618]
[1734811231746,0.37169003,97388.0,97371.0,0.3618]
[1734811231939,0.051372,97373.0,97371.0,0.001]
[1734811232141,0.3608,97380.0,97371.0,0.001]
[1734811232539,0.051372,97373.0,97371.0,0.001]
[1734811232852,0.051372,97373.0,97372.0,0.3608]
[1734811233353,0.3608,97380.0,97372.0,0.3608]
[1734811233552,0.051372,97373.0,97372.0,0.3608]
[1734811233751,0.412168,97380.0,97372.0,0.3608]
[1734811233959,0.051369,97378.0,97372.0,0.3608]
[1734811234144,0.3608,97380.0,97372.0,0.412172]
[1734811234346,0.05137,97377.0,97372.0,0.412172]
[1734811235657,0.051367,97382.0,97373.0,0.16791123]
[1734811235852,0.1112,97387.0,97373.0,0.22421123]
[1734811236059,0.1112,97387.0,97377.0,0.15195163]
[1734811236060,0.051368,97380.0,97377.0,0.15195163]
[1734811236247,0.051368,97380.0,97373.0,0.22421123]
[1734811236445,0.1112,97387.0,97373.0,0.0563]
[1734811236755,0.051371,97375.0,97373.0,0.0563]
[1734811237353,0.051367,97382.0,97373.0,0.0563]
[1734811237555,0.1112,97387.0,97373.0,0.0563]
[1734811237751,0.051368,97380.0,97373.0,0.107671]
[1734811238758,0.051365,97386.0,97373.0,0.0563]
[1734811239056,0.3608,97376.0,97354.0,0.3608]
[1734811239358,0.3608,97357.0,97348.0,0.051384]
[1734811239657,0.3608,97357.0,97344.0,0.01046007]
[1734811239658,0.051386,97345.0,97344.0,0.01046007]
[1734811239961,0.051386,97345.0,97343.0,0.18373384]
[1734811240158,0.051386,97345.0,97343.0,0.09173384]
[1734811240349,0.051386,97345.0,97338.0,0.24497845]
[1734811240350,0.051389,97339.0,97338.0,0.24497845]
[1734811240556,0.3608,97339.0,97332.0,0.00011686]
[1734811240754,0.412193,97333.0,97332.0,0.00011686]
[1734811241153,0.712193,97333.0,97332.0,0.00011686]
[1734811241453,0.412193,97333.0,97332.0,0.00011686]
[1734811241653,0.051402,97315.0,97314.0,0.0574]
[1734811241950,0.051407,97306.0,97304.0,0.24258321]
[1734811242155,0.3608,97318.0,97304.0,0.24258321]
[1734811242156,0.051403,97314.0,97304.0,0.24258321]
[1734811242354,0.051403,97314.0,97304.0,0.051408]
[1734811242555,0.051404,97313.0,97305.0,0.051407]
[1734811242751,0.051405,97310.0,97305.0,0.051407]
[1734811242955,0.051407,97306.0,97299.0,0.0576]
[1734811243154,0.051407,97306.0,97301.0,0.37095842]
[1734811243364,0.051408,97304.0,97301.0,0.37095842]
[1734811243870,0.15195163,97311.0,97301.0,0.3608]
[1734811244166,0.051409,97303.0,97301.0,0.3608]
[1734811244358,0.051409,97303.0,97299.0,0.0576]
[1734811244359,0.3608,97310.0,97299.0,0.0576]
[1734811244564,0.05141,97300.0,97299.0,0.0576]
[1734811245556,0.41221,97300.0,97299.0,0.0576]
[1734811246059,0.05141,97300.0,97299.0,0.0586]
[1734811246255,0.41221,97300.0,97299.0,0.001]
[1734811246860,0.05142,97281.0,97280.0,0.00010242]
[1734811247269,0.3608,97283.0,97280.0,0.00010242]
[1734811247270,0.36136001,97283.0,97280.0,0.00010242]
[1734811247473,0.0100219,97289.0,97286.0,0.051417]
[1734811247762,0.00052001,97292.0,97286.0,0.051417]
[1734811247952,0.0614339,97297.0,97286.0,0.051417]
[1734811248156,0.051412,97297.0,97286.0,0.051417]
[1734811248355,0.051412,97297.0,97281.0,0.0582]
[1734811248560,0.051412,97297.0,97289.0,0.051416]
[1734811248757,0.0614289,97306.0,97291.0,0.051414]
[1734811248958,0.0100219,97307.0,97288.0,0.3608]
[1734811249165,0.36132001,97308.0,97298.0,0.051411]
[1734811249364,0.3608,97308.0,97299.0,0.056]
[1734811249567,0.15195163,97310.0,97302.0,0.051409]
[1734811250664,0.15195163,97310.0,97299.0,0.056]
[1734811250863,0.15195163,97310.0,97303.0,0.051408]
[1734811251067,0.56467164,97320.0,97299.0,0.056]
[1734811251264,0.56415163,97320.0,97308.0,0.051405]
[1734811251466,0.15195163,97318.0,97308.0,0.051405]
[1734811251973,0.001,97310.0,97308.0,0.051405]
[1734811253471,0.051403,97314.0,97309.0,0.0557]
[1734811253773,0.00111686,97312.0,97309.0,0.0557]
[1734811254366,0.051404,97311.0,97309.0,0.0557]
[1734811254567,0.051405,97309.0,97300.0,0.05141]
[1734811254760,0.051405,97309.0,97299.0,0.056]
[1734811255168,0.3608,97308.0,97297.0,0.3608]
[1734811255378,0.05141,97301.0,97297.0,0.3608]
[1734811256673,0.05141,97301.0,97299.0,0.001]
[1734811257482,0.05141,97301.0,97297.0,0.002]
[1734811257973,0.05141,97301.0,97297.0,0.001]
[1734811258177,0.05141,97301.0,97295.0,0.051412]
[1734811258375,0.05141,97301.0,97299.0,0.001]
[1734811260378,0.36132001,97308.0,97290.0,0.20765163]
[1734811260379,0.41272601,97308.0,97290.0,0.20765163]
[1734811260575,0.00011686,97312.0,97298.0,0.15195163]
[1734811260771,0.00011686,97312.0,97310.0,0.051405]
[1734811260962,0.00011686,97312.0,97311.0,0.0592]
[1734811261266,0.51275163,97330.0,97316.0,0.051401]
[1734811261769,0.0514,97320.0,97316.0,0.051401]
[1734811261969,0.0514,97320.0,97317.0,0.051401]
[1734811262575,0.051401,97317.0,97311.0,0.0592]
[1734811262967,0.051403,97314.0,97312.0,0.051404]
[1734811263365,0.051404,97312.0,97311.0,0.0592]
[1734811263570,0.0514,97319.0,97311.0,0.0592]
[1734811263768,0.36132001,97321.0,97311.0,0.0592]
[1734811263974,0.3608,97321.0,97318.0,0.0514]
[1734811264773,0.3608,97321.0,97319.0,0.0514]
[1734811265077,0.3618,97321.0,97319.0,0.0514]
[1734811265273,0.001,97321.0,97319.0,0.4122]
[1734811266573,0.051397,97326.0,97323.0,0.051398]
[1734811267177,0.051397,97326.0,97324.0,0.051397]
[1734811267478,0.00836087,97325.0,97324.0,0.051397]
[1734811268783,0.00840451,97325.0,97324.0,0.051397]
[1734811269077,0.00840613,97325.0,97324.0,0.051397]
[1734811269881,0.00940613,97325.0,97324.0,0.051397]
[1734811272183,0.00940613,97325.0,97319.0,0.3608]
[1734811272374,0.00840613,97324.0,97323.0,0.051398]
[1734811274471,0.00841492,97324.0,97323.0,0.051398]
[1734811274675,0.0184913,97324.0,97323.0,0.051398]
[1734811275575,0.00841492,97324.0,97323.0,0.051398]
[1734811275776,0.01849128,97324.0,97323.0,0.051398]
[1734811277676,0.0184961,97324.0,97323.0,0.051398]
[1734811277874,0.0184961,97324.0,97320.0,0.059]
[1734811278081,0.051399,97321.0,97320.0,0.059]
[1734811278384,0.051399,97321.0,97300.0,0.15195163]
[1734811278385,0.0698951,97321.0,97297.0,0.30690836]
[1734811278583,0.051402,97315.0,97298.0,0.0608]
[1734811278786,0.05141,97300.0,97298.0,0.0608]
[1734811278973,0.051411,97298.0,97297.0,0.30690836]
[1734811279178,0.06149794,97298.0,97297.0,0.30690836]
[1734811279384,0.06989612,97298.0,97297.0,0.30690836]
[1734811279984,0.05980918,97298.0,97297.0,0.30690836]
[1734811280181,0.06995314,97298.0,97297.0,0.30990836]
[1734811280475,0.06995101,97298.0,97297.0,0.009]
[1734811280683,0.05981158,97298.0,97297.0,0.009]
[1734811281482,0.42061158,97298.0,97297.0,0.009]
[1734811282083,0.05981158,97298.0,97297.0,0.009]
[1734811282285,0.05981158,97298.0,97297.0,0.060412]
[1734811282484,0.05981158,97298.0,97297.0,0.009]
[1734811282485,0.06995123,97298.0,97297.0,0.009]
[1734811283092,0.06155065,97298.0,97297.0,0.009]
[1734811283284,0.06995513,97298.0,97297.0,0.009]
[1734811283479,0.051411,97298.0,97297.0,0.009]
[1734811283989,0.05981519,97298.0,97297.0,0.009]
[1734811284792,0.00840419,97298.0,97297.0,0.4303]
[1734811286394,0.01847526,97298.0,97297.0,0.4303]
[1734811287200,0.01847526,97298.0,97297.0,0.4915]
[1734811287799,0.06988626,97298.0,97297.0,0.4915]
[1734811288692,0.06988626,97298.0,97297.0,0.4825]
[1734811288888,0.06988626,97298.0,97297.0,0.0605]
[1734811289093,0.0699346,97298.0,97297.0,0.0605]
[1734811289390,0.051415,97291.0,97288.0,0.3608]
[1734811289597,0.0699396,97290.0,97288.0,0.3608]
[1734811289794,0.0185236,97289.0,97288.0,0.3608]
[1734811290401,0.051416,97288.0,97282.0,0.0586]
[1734811290701,0.0185236,97287.0,97280.0,0.00010242]
[1734811290902,0.0185236,97286.0,97280.0,0.00010242]
[1734811291094,0.05142,97281.0,97280.0,0.00010242]
[1734811291299,0.05981926,97281.0,97280.0,0.00010242]
[1734811291515,0.06997262,97281.0,97280.0,0.00010242]
[1734811292611,0.06997262,97281.0,97280.0,0.00110242]
[1734811293522,0.06157336,97281.0,97280.0,0.00110242]
[1734811294221,0.01015336,97281.0,97280.0,0.00110242]
[1734811294422,0.05142,97282.0,97280.0,0.00110242]
[1734811294610,0.01015336,97281.0,97280.0,0.00110242]
[1734811294813,0.05142,97282.0,97280.0,0.00110242]
[1734811295119,0.05142,97282.0,97280.0,0.05252342]
[1734811295514,0.05142,97282.0,97280.0,0.05152342]
[1734811296115,0.05242,97282.0,97280.0,0.05152342]
[1734811296316,0.001,97282.0,97280.0,0.05152342]
[1734811296727,0.01855262,97292.0,97280.0,0.00010242]
[1734811297028,0.05981326,97292.0,97280.0,0.00010242]
[1734811297225,0.051414,97292.0,97280.0,0.00010242]
[1734811297527,0.001,97282.0,97281.0,0.05142]
[1734811298619,0.001,97282.0,97281.0,0.05342]
[1734811298819,0.051417,97287.0,97285.0,0.051418]
[1734811299015,0.15195163,97291.0,97281.0,0.002]
[1734811299221,0.01006512,97297.0,97296.0,0.051412]
[1734811299424,0.01006512,97300.0,97286.0,0.3608]
[1734811299622,0.01006512,97300.0,97297.0,0.051411]
[1734811299821,0.01006512,97301.0,97298.0,0.0577]
[1734811300020,0.01006512,97304.0,97298.0,0.0577]
[1734811300318,0.051411,97300.0,97298.0,0.0577]
[1734811300624,0.01006512,97299.0,97298.0,0.0577]
[1734811300923,0.01846438,97299.0,97298.0,0.0577]
[1734811302223,0.01946438,97299.0,97298.0,0.1154]
[1734811302928,0.01111793,97299.0,97298.0,0.1154]
[1734811303132,0.01951719,97299.0,97298.0,0.1154]
[1734811303628,0.02151719,97299.0,97298.0,0.1154]
[1734811303926,0.01951719,97299.0,97298.0,0.1154]
[1734811304130,0.02151719,97299.0,97298.0,0.1154]
[1734811306235,0.051413,97295.0,97294.0,0.3608]
[1734811306527,0.06991494,97295.0,97294.0,0.3608]
[1734811306731,0.051417,97287.0,97281.0,0.22392]
[1734811306929,0.06153493,97287.0,97281.0,0.18285646]
[1734811307229,0.06991894,97287.0,97281.0,0.18285646]
[1734811307531,0.00838401,97287.0,97286.0,0.412217]
[1734811307741,0.01864763,97287.0,97286.0,0.412217]
[1734811308226,0.12286273,97298.0,97286.0,0.412217]
[1734811308227,0.12286273,97298.0,97297.0,0.051412]
[1734811308439,0.12286273,97298.0,97297.0,0.412212]
[1734811309020,0.03156273,97298.0,97297.0,0.412212]
[1734811309732,0.03356273,97298.0,97297.0,0.412212]
[1734811310337,0.57577576,97321.0,97297.0,0.412212]
[1734811310338,0.15252093,97313.0,97297.0,0.412212]
[1734811310528,0.15252093,97313.0,97311.0,0.051404]
[1734811310827,0.20392393,97313.0,97312.0,0.0575]
[1734811311525,0.051403,97313.0,97312.0,0.0575]
[1734811312431,0.0514,97319.0,97312.0,0.0575]
[1734811312628,0.0514,97319.0,97317.0,0.051401]
[1734811313023,0.15252093,97320.0,97319.0,0.0514]
[1734811314135,0.15352093,97320.0,97319.0,0.0514]
[1734811314328,0.001,97320.0,97319.0,0.0514]
[1734811315328,0.15252093,97333.0,97332.0,0.051393]
[1734811315635,0.15252093,97333.0,97332.0,0.412193]
[1734811315834,0.15252093,97341.0,97340.0,0.051389]
[1734811316034,0.15252093,97341.0,97340.0,0.412189]
[1734811316930,0.051384,97350.0,97340.0,0.3608]
[1734811317130,0.06168188,97356.0,97341.0,0.051388]
[1734811317337,0.01030088,97356.0,97351.0,0.3608]
[1734811317538,0.051381,97355.0,97351.0,0.3608]
[1734811317737,0.051381,97355.0,97353.0,0.051382]
[1734811317933,0.15252093,97361.0,97359.0,0.051379]
[1734811318132,0.051378,97360.0,97359.0,0.051379]
[1734811318731,0.051375,97367.0,97360.0,0.051378]
[1734811319031,0.051376,97364.0,97362.0,0.3608]
[1734811321425,0.051373,97371.0,97362.0,0.3608]
[1734811321629,0.051374,97368.0,97363.0,0.0569]
[1734811322135,0.051374,97368.0,97363.0,0.108277]
[1734811322437,0.051375,97366.0,97363.0,0.108277]
[1734811323037,0.01010619,97376.0,97368.0,0.051374]
[1734811323243,0.051373,97370.0,97368.0,0.051374]
[1734811323932,0.1741,97377.0,97363.0,0.0569]
[1734811324232,0.051375,97367.0,97363.0,0.0569]
[1734811324432,0.051375,97367.0,97363.0,0.108277]
[1734811324830,0.18438678,97377.0,97362.0,0.3608]
[1734811325037,0.051383,97352.0,97351.0,0.0008]
[1734811325238,0.051396,97327.0,97319.0,0.0606]
[1734811325427,0.051396,97327.0,97315.0,0.412202]
[1734811325632,0.051396,97327.0,97315.0,0.00056]
[1734811325835,0.051403,97314.0,97311.0,0.051404]
[1734811326545,0.20338197,97321.0,97312.0,0.051403]
[1734811326738,0.15198297,97321.0,97312.0,0.051403]
[1734811326941,0.051402,97315.0,97312.0,0.051403]
[1734811327142,0.051404,97312.0,97311.0,0.002]
[1734811327944,0.051404,97312.0,97290.0,0.3608]
[1734811327945,0.412204,97312.0,97290.0,0.3608]
[1734811328139,0.051415,97291.0,97290.0,0.3608]
[1734811328538,0.051418,97286.0,97279.0,0.3608]
[1734811329546,0.051414,97293.0,97286.0,0.051417]
[1734811329838,0.0578,97300.0,97279.0,0.3608]
[1734811330042,0.051411,97298.0,97279.0,0.3608]
[1734811330345,0.051418,97285.0,97279.0,0.3608]
[1734811330732,0.051418,97285.0,97280.0,0.00910242]
[1734811331241,0.0578,97300.0,97280.0,0.00010242]
[1734811331442,0.051414,97293.0,97280.0,0.00910242]
[1734811331638,0.051415,97291.0,97280.0,0.06752242]
[1734811332447,0.051415,97291.0,97280.0,0.05852242]
[1734811332657,0.051415,97291.0,97280.0,0.06752242]
[1734811333233,0.051418,97286.0,97280.0,0.06652242]
[1734811333653,0.05142,97282.0,97280.0,0.01510242]
[1734811334144,0.3608,97281.0,97280.0,0.01610242]
[1734811336052,0.05142,97282.0,97280.0,0.01610242]
[1734811336549,0.412214,97292.0,97280.0,0.06752342]
[1734811336947,0.412214,97292.0,97280.0,0.00910242]
[1734811337252,0.3608,97292.0,97288.0,0.051416]
[1734811338241,0.051411,97299.0,97291.0,0.051415]
[1734811338441,0.36132001,97301.0,97293.0,0.051414]
[1734811338646,0.051406,97308.0,97293.0,0.051414]
[1734811338952,0.01045552,97310.0,97293.0,0.051414]
[1734811339150,0.051409,97302.0,97293.0,0.412214]
[1734811339451,0.051408,97305.0,97301.0,0.3608]
[1734811340349,0.051404,97313.0,97305.0,0.051407]
[1734811340747,0.36132001,97320.0,97305.0,0.051407]
[1734811340945,0.3608,97320.0,97305.0,0.051407]
[1734811341144,0.051404,97311.0,97305.0,0.051407]
[1734811341550,0.3608,97320.0,97305.0,0.051407]
[1734811341753,0.051402,97316.0,97307.0,0.051406]
[1734811341946,0.3608,97320.0,97307.0,0.051406]
[1734811342456,0.051404,97312.0,97307.0,0.051406]
[1734811342758,0.051407,97307.0,97301.0,0.3608]
[1734811342957,0.051409,97303.0,97301.0,0.3608]
[1734811343151,0.051409,97303.0,97298.0,0.051411]
[1734811344045,0.051403,97314.0,97305.0,0.051407]
[1734811344254,0.051403,97314.0,97301.0,0.001]
[1734811344255,0.051403,97314.0,97306.0,0.051407]
[1734811344445,0.051403,97314.0,97307.0,0.051406]
[1734811345246,0.36140001,97320.0,97307.0,0.051406]
[1734811345458,0.3608,97320.0,97302.0,0.0511]
[1734811345647,0.051408,97304.0,97302.0,0.0511]
[1734811345842,0.3608,97310.0,97298.0,0.002]
[1734811346051,0.051411,97299.0,97298.0,0.002]
[1734811346252,0.051412,97297.0,97296.0,0.3608]
[1734811348255,0.01048798,97313.0,97296.0,0.3668]
[1734811348462,0.051406,97309.0,97304.0,0.051407]
[1734811348756,0.051406,97309.0,97305.0,0.0546]
[1734811349155,0.051406,97307.0,97305.0,0.0546]
[1734811351648,0.053406,97307.0,97305.0,0.0546]
[1734811352347,0.01006477,97306.0,97305.0,0.0546]
[1734811353458,0.01827687,97306.0,97305.0,0.0546]
[1734811354555,0.01827687,97306.0,97296.0,0.3608]
[1734811354764,0.051412,97297.0,97296.0,0.3608]
[1734811354956,0.01827687,97297.0,97291.0,0.0539]
[1734811355267,0.051414,97292.0,97291.0,0.0539]
[1734811355458,0.051414,97292.0,97290.0,0.3608]
[1734811355459,0.06156824,97292.0,97290.0,0.3608]
[1734811355650,0.00821985,97291.0,97290.0,0.3608]
[1734811355851,0.05142,97281.0,97280.0,0.05400242]
[1734811356048,0.06979409,97281.0,97280.0,0.00010242]
[1734811357258,0.06979409,97281.0,97280.0,0.00910242]
[1734811357759,0.06979409,97281.0,97280.0,0.01410242]
[1734811358453,0.06984143,97281.0,97280.0,0.01410242]
[1734811358853,0.06983761,97281.0,97280.0,0.01410242]
[1734811360964,0.18186914,97281.0,97280.0,0.01410242]
[1734811361151,0.18186914,97281.0,97254.0,0.0559]
[1734811361357,0.051434,97255.0,97254.0,0.0559]
[1734811361561,0.06167688,97255.0,97254.0,0.2393472]
[1734811361957,0.06167688,97255.0,97254.0,0.1834472]
[1734811362157,0.06996687,97255.0,97254.0,0.1834472]
[1734811362358,0.06996687,97255.0,97254.0,0.2014472]
[1734811362961,0.08049272,97255.0,97254.0,0.2014472]
[1734811363367,0.05144,97243.0,97241.0,0.0565]
[1734811363564,0.06168288,97243.0,97241.0,0.0565]
[1734811363758,0.01027446,97243.0,97242.0,0.41224]
[1734811363959,0.00820626,97250.0,97242.0,0.3608]
[1734811364168,0.00108373,97255.0,97248.0,0.051437]
[1734811364169,0.01026631,97249.0,97248.0,0.051437]
[1734811364964,8.373e-05,97255.0,97254.0,0.051434]
[1734811365169,0.00108373,97255.0,97254.0,0.421234]
[1734811365674,8.373e-05,97255.0,97254.0,0.412234]
[1734811367177,0.05251773,97255.0,97254.0,0.3698]
[1734811367965,0.05351773,97255.0,97254.0,0.3738]
[1734811371872,0.05351773,97255.0,97254.0,0.013]
[1734811372271,0.00208373,97255.0,97254.0,0.013]
[1734811376874,0.01227527,97255.0,97254.0,0.013]
[1734811377470,0.01227682,97255.0,97254.0,0.013]
[1734811377973,0.00208373,97255.0,97254.0,0.013]
[1734811378977,0.01019309,97264.0,97254.0,0.12962625]
[1734811379172,0.01016367,97273.0,97272.0,0.051425]
[1734811379381,0.01016367,97273.0,97272.0,0.3608]
[1734811379580,0.051427,97268.0,97263.0,0.3608]
[1734811379786,0.01016367,97267.0,97263.0,0.3608]
[1734811380087,0.001,97264.0,97263.0,0.412229]
[1734811380290,0.051433,97256.0,97255.0,0.1834472]
[1734811380480,0.0183314,97256.0,97255.0,0.1834472]
[1734811380787,0.01835685,97256.0,97255.0,0.2348812]
[1734811380982,0.01835685,97256.0,97255.0,0.5956812]
[1734811381280,0.01016367,97256.0,97255.0,0.5442472]
[1734811381481,0.01016367,97256.0,97255.0,0.3608]
[1734811381685,0.01835685,97256.0,97255.0,0.3608]
[1734811382187,0.01935685,97256.0,97255.0,0.3698]
[1734811382884,0.02036642,97256.0,97255.0,0.3758]
[1734811385772,0.02038018,97256.0,97255.0,0.3758]
[1734811386277,0.02038018,97256.0,97255.0,0.38613335]
[1734811386684,0.02037999,97256.0,97255.0,0.38613335]
[1734811386986,0.09219314,97263.0,97256.0,0.051433]
[1734811387185,0.09219314,97263.0,97255.0,0.38677335]
[1734811387381,0.09219314,97263.0,97262.0,0.05143]
[1734811388177,0.09219314,97265.0,97258.0,0.24400112]
[1734811388372,0.09219314,97265.0,97264.0,0.412229]
[1734811389282,0.09319314,97265.0,97264.0,0.412229]
[1734811389477,0.001,97265.0,97264.0,0.412229]
[1734811389683,0.001,97265.0,97264.0,0.416229]
[1734811390879,0.001,97265.0,97264.0,0.425229]
[1734811393087,0.001,97265.0,97264.0,0.013]
[1734811393481,0.1135,97265.0,97264.0,0.013]
[1734811393687,0.1135,97265.0,97264.0,0.19690303]
[1734811393882,0.1135,97265.0,97259.0,0.24400112]
[1734811394088,0.051431,97260.0,97259.0,0.24400112]
[1734811394990,0.051431,97260.0,97259.0,0.25800112]
[1734811395191,0.10143712,97260.0,97259.0,0.014]
[1734811395594,0.10243712,97260.0,97259.0,0.014]
[1734811397492,0.40243712,97260.0,97233.0,0.0565]
[1734811397686,0.051443,97237.0,97228.0,0.051448]
[1734811398087,0.051443,97237.0,97231.0,0.30690836]
[1734811398294,0.0571,97245.0,97231.0,0.30690836]
[1734811398594,0.051446,97232.0,97231.0,0.30690836]
[1734811399091,0.06166647,97232.0,97231.0,0.30690836]
[1734811399296,0.01022047,97232.0,97227.0,0.0574]
[1734811399493,0.001,97237.0,97231.0,0.007]
[1734811399684,0.1544697,97241.0,97240.0,0.051442]
[1734811399887,0.15394969,97241.0,97240.0,0.051442]
[1734811400290,0.06704969,97241.0,97240.0,0.051442]
[1734811400486,0.001,97245.0,97243.0,0.05144]
[1734811400687,0.001,97245.0,97244.0,0.3608]
[1734811400891,0.09226645,97250.0,97249.0,0.051437]
[1734811401594,0.00536645,97250.0,97249.0,0.16037913]
[1734811401796,0.12302193,97255.0,97254.0,0.051434]
[1734811402000,0.09226122,97258.0,97257.0,0.051433]
[1734811402791,0.09226122,97258.0,97257.0,0.5311074]
[1734811402993,0.12302193,97263.0,97257.0,0.5311074]
[1734811402994,0.12302193,97263.0,97262.0,0.05143]
[1734811403390,0.12302193,97263.0,97262.0,0.16581662]
[1734811403699,0.12302193,97275.0,97274.0,0.051424]
[1734811403892,0.12302193,97275.0,97274.0,0.773024]
[1734811404591,0.18426493,97287.0,97286.0,0.051417]
[1734811404792,0.051414,97294.0,97286.0,0.051417]
[1734811404793,0.12295984,97290.0,97286.0,0.412217]
[1734811405202,0.12295984,97290.0,97286.0,0.3608]
[1734811405391,0.12295984,97290.0,97287.0,0.051416]
[1734811405800,0.12595984,97290.0,97287.0,0.051416]
[1734811406499,0.12595984,97290.0,97286.0,0.3608]
[1734811406500,0.01,97290.0,97289.0,0.051416]
[1734811406805,0.01,97290.0,97289.0,0.412216]
[1734811407490,0.01,97290.0,97289.0,0.3608]
[1734811407491,0.061415,97290.0,97289.0,0.3608]
[1734811407897,0.062415,97290.0,97289.0,0.3608]
[1734811408092,0.063415,97290.0,97289.0,0.3608]
[1734811409098,0.063415,97290.0,97263.0,0.0579]
[1734811409099,0.05142,97282.0,97277.0,0.3608]
[1734811410399,0.05342,97282.0,97277.0,0.3608]
[1734811410596,0.051421,97279.0,97277.0,0.3608]
[1734811411290,0.051421,97279.0,97272.0,0.051425]